[Event "Early-Titled-Tuesday-Blitz-January-30-2024"]
[Site "Chess.com"]
[Date "2024.01.30"]
[Round "11"]
[White "vlad10898"]
[Black "aghasiyevkamal"]
[Result "0-1"]
[WhiteElo "2797"]
[BlackElo "2629"]
[TimeControl "180+1"]
[EndTime "10:12:07 PST"]
[Termination "aghasiyevkamal won by resignation"]

1. e4 {[%clk 0:02:55.1]} 1... c5 {[%clk 0:02:58.8]} 2. Nc3 {[%clk 0:02:52.7]}
2... Nc6 {[%clk 0:02:57.7]} 3. g3 {[%clk 0:02:53]} 3... g6 {[%clk 0:02:58]} 4.
Bg2 {[%clk 0:02:52.7]} 4... Bg7 {[%clk 0:02:58.6]} 5. d3 {[%clk 0:02:53.3]} 5...
e6 {[%clk 0:02:58.3]} 6. Be3 {[%clk 0:02:53.2]} 6... d6 {[%clk 0:02:58]} 7. Qd2
{[%clk 0:02:53]} 7... Nd4 {[%clk 0:02:57.6]} 8. Nd1 {[%clk 0:02:49.7]} 8... Ne7
{[%clk 0:02:47.8]} 9. c3 {[%clk 0:02:47.7]} 9... Ndc6 {[%clk 0:02:48]} 10. Bh6
{[%clk 0:02:47.3]} 10... Bxh6 {[%clk 0:02:43.6]} 11. Qxh6 {[%clk 0:02:46.6]}
11... Bd7 {[%clk 0:02:40.4]} 12. Qg7 {[%clk 0:02:29.7]} 12... Rf8 {[%clk
0:02:40.2]} 13. Qxh7 {[%clk 0:02:29]} 13... Qb6 {[%clk 0:02:39.7]} 14. Qh6
{[%clk 0:02:28.2]} 14... O-O-O {[%clk 0:02:38.9]} 15. Ne2 {[%clk 0:02:27.8]}
15... Ne5 {[%clk 0:02:38.6]} 16. Qd2 {[%clk 0:02:02.1]} 16... c4 {[%clk
0:02:26.4]} 17. dxc4 {[%clk 0:02:00.8]} 17... Nxc4 {[%clk 0:02:26.4]} 18. Qd4
{[%clk 0:01:58]} 18... Qc5 {[%clk 0:01:40.7]} 19. b3 {[%clk 0:01:23.2]} 19...
Ne5 {[%clk 0:01:38.6]} 20. f4 {[%clk 0:01:12.6]} 20... N5c6 {[%clk 0:01:32.3]}
21. Qxc5 {[%clk 0:01:09.9]} 21... dxc5 {[%clk 0:01:32.8]} 22. Ne3 {[%clk
0:01:10.6]} 22... e5 {[%clk 0:01:30.6]} 23. O-O-O {[%clk 0:01:05.2]} 23... f5
{[%clk 0:01:28.5]} 24. fxe5 {[%clk 0:00:45]} 24... Nxe5 {[%clk 0:01:28.2]} 25.
Nf4 {[%clk 0:00:45.7]} 25... g5 {[%clk 0:01:19.6]} 26. Nfd5 {[%clk 0:00:45.1]}
26... Nxd5 {[%clk 0:01:19.8]} 27. Nxd5 {[%clk 0:00:45]} 27... f4 {[%clk
0:01:19]} 28. gxf4 {[%clk 0:00:36.3]} 28... gxf4 {[%clk 0:01:19.2]} 29. Ne7+
{[%clk 0:00:27.6]} 29... Kb8 {[%clk 0:01:15.9]} 30. Rd5 {[%clk 0:00:27.5]} 30...
f3 {[%clk 0:01:09.9]} 31. Bf1 {[%clk 0:00:23.4]} 31... Ng4 {[%clk 0:00:58.8]}
32. Ng6 {[%clk 0:00:07.7]} 32... Rfe8 {[%clk 0:00:51.1]} 33. Bh3 {[%clk
0:00:04.3]} 33... Nf2 {[%clk 0:00:45.1]} 34. Bxd7 {[%clk 0:00:04]} 34... Nxh1
{[%clk 0:00:45.2]} 35. Bxe8 {[%clk 0:00:04.3]} 35... Rxe8 {[%clk 0:00:41.7]} 36.
Rf5 {[%clk 0:00:03.4]} 36... f2 {[%clk 0:00:35.8]} 37. e5 {[%clk 0:00:02.7]}
37... Rg8 {[%clk 0:00:34.3]} 38. e6 {[%clk 0:00:01.7]} 38... Rxg6 {[%clk
0:00:33.3]} 39. e7 {[%clk 0:00:02.2]} 39... Re6 {[%clk 0:00:33.1]} 40. Rf8+
{[%clk 0:00:02.4]} 40... Kc7 {[%clk 0:00:33.5]} 41. e8=Q {[%clk 0:00:02.8]}
41... Rxe8 {[%clk 0:00:33.7]} 42. Rxe8 {[%clk 0:00:03.7]} 42... f1=Q+ {[%clk
0:00:34]} 0-1

[Event "Early-Titled-Tuesday-Blitz-January-30-2024"]
[Site "Chess.com"]
[Date "2024.01.30"]
[Round "11"]
[White "Laico"]
[Black "Shushik"]
[Result "0-1"]
[WhiteElo "2370"]
[BlackElo "2511"]
[TimeControl "180+1"]
[EndTime "10:12:07 PST"]
[Termination "Shushik won by resignation"]

1. e4 {[%clk 0:02:51.6]} 1... c5 {[%clk 0:03:00.5]} 2. Nc3 {[%clk 0:02:51]} 2...
Nc6 {[%clk 0:02:59.6]} 3. f4 {[%clk 0:02:51.4]} 3... g6 {[%clk 0:03:00.3]} 4.
Nf3 {[%clk 0:02:52]} 4... Bg7 {[%clk 0:03:00.7]} 5. Bb5 {[%clk 0:02:52.8]} 5...
Nd4 {[%clk 0:02:59]} 6. O-O {[%clk 0:02:53.4]} 6... a6 {[%clk 0:02:50.9]} 7. Bc4
{[%clk 0:02:53]} 7... e6 {[%clk 0:02:49.9]} 8. d3 {[%clk 0:02:53]} 8... Ne7
{[%clk 0:02:45.3]} 9. Nxd4 {[%clk 0:02:51.9]} 9... cxd4 {[%clk 0:02:44.8]} 10.
Ne2 {[%clk 0:02:52.8]} 10... d5 {[%clk 0:02:44.3]} 11. Bb3 {[%clk 0:02:53.1]}
11... O-O {[%clk 0:02:37.3]} 12. Ng3 {[%clk 0:02:53.3]} 12... dxe4 {[%clk
0:02:22.4]} 13. dxe4 {[%clk 0:02:52.7]} 13... b5 {[%clk 0:02:23]} 14. Kh1 {[%clk
0:02:50.3]} 14... Ra7 {[%clk 0:02:22.5]} 15. a4 {[%clk 0:02:47.3]} 15... b4
{[%clk 0:02:12.4]} 16. a5 {[%clk 0:02:46.3]} 16... Rd7 {[%clk 0:02:09.1]} 17.
Bd2 {[%clk 0:02:43.2]} 17... Nc6 {[%clk 0:02:05.4]} 18. Ba4 {[%clk 0:02:43.1]}
18... Rc7 {[%clk 0:02:00.5]} 19. Bxc6 {[%clk 0:02:42]} 19... Rxc6 {[%clk
0:02:01.4]} 20. Bxb4 {[%clk 0:02:42.4]} 20... Re8 {[%clk 0:02:02.2]} 21. f5
{[%clk 0:02:41.4]} 21... exf5 {[%clk 0:01:59.9]} 22. exf5 {[%clk 0:02:42.3]}
22... Qd5 {[%clk 0:01:53.8]} 23. Qd2 {[%clk 0:02:01.2]} 23... Bb7 {[%clk
0:01:49.6]} 24. Rae1 {[%clk 0:01:53.9]} 24... Rcc8 {[%clk 0:01:46.9]} 25. fxg6
{[%clk 0:01:44.3]} 25... hxg6 {[%clk 0:01:42.9]} 26. Qf2 {[%clk 0:01:34.4]}
26... Re3 {[%clk 0:01:25.2]} 27. Rxe3 {[%clk 0:01:04.9]} 27... dxe3 {[%clk
0:01:26.1]} 28. Qe2 {[%clk 0:01:05.8]} 28... Be5 {[%clk 0:00:58.9]} 29. Rf3
{[%clk 0:00:56.7]} 29... Qd4 {[%clk 0:00:31.9]} 30. Bc3 {[%clk 0:00:51.3]} 30...
Bxf3 {[%clk 0:00:31.8]} 31. gxf3 {[%clk 0:00:34.5]} 31... Qf4 {[%clk 0:00:28.8]}
32. Ne4 {[%clk 0:00:22.7]} 32... Bxc3 {[%clk 0:00:27.6]} 33. Nxc3 {[%clk
0:00:22.9]} 33... Rd8 {[%clk 0:00:24.9]} 34. Ne4 {[%clk 0:00:19.4]} 34... Rd4
{[%clk 0:00:20.1]} 35. c3 {[%clk 0:00:17.7]} 35... Rd5 {[%clk 0:00:14.2]} 36.
Qc4 {[%clk 0:00:11.7]} 36... Qxf3+ {[%clk 0:00:13.5]} 37. Kg1 {[%clk 0:00:11.5]}
37... Rd1+ {[%clk 0:00:13.7]} 0-1

[Event "Early-Titled-Tuesday-Blitz-January-30-2024"]
[Site "Chess.com"]
[Date "2024.01.30"]
[Round "11"]
[White "toninhojit"]
[Black "EsmeraldasAnderson03"]
[Result "0-1"]
[WhiteElo "2536"]
[BlackElo "2413"]
[TimeControl "180+1"]
[EndTime "10:12:14 PST"]
[Termination "EsmeraldasAnderson03 won on time"]

1. e4 {[%clk 0:03:00.9]} 1... c5 {[%clk 0:02:59.2]} 2. Nf3 {[%clk 0:03:01.4]}
2... d6 {[%clk 0:02:59.5]} 3. d4 {[%clk 0:03:02]} 3... cxd4 {[%clk 0:03:00.4]}
4. Nxd4 {[%clk 0:03:02.9]} 4... Nf6 {[%clk 0:03:00.8]} 5. Nc3 {[%clk 0:03:03.5]}
5... a6 {[%clk 0:03:00.8]} 6. Bc4 {[%clk 0:03:04.2]} 6... e6 {[%clk 0:03:01.2]}
7. Bb3 {[%clk 0:03:04.6]} 7... Qc7 {[%clk 0:03:01.8]} 8. Qe2 {[%clk 0:03:04.8]}
8... b5 {[%clk 0:03:02.5]} 9. f4 {[%clk 0:03:04.4]} 9... Bb7 {[%clk 0:03:02.3]}
10. f5 {[%clk 0:03:04.6]} 10... e5 {[%clk 0:03:01.5]} 11. Nf3 {[%clk 0:03:00.9]}
11... b4 {[%clk 0:03:01.4]} 12. Nd5 {[%clk 0:03:00.2]} 12... Nxd5 {[%clk
0:03:01]} 13. exd5 {[%clk 0:02:58]} 13... Nd7 {[%clk 0:03:00.5]} 14. Be3 {[%clk
0:02:51.9]} 14... Nc5 {[%clk 0:02:56.1]} 15. Bxc5 {[%clk 0:02:40.4]} 15... Qxc5
{[%clk 0:02:57]} 16. Ba4+ {[%clk 0:02:40.1]} 16... Kd8 {[%clk 0:02:56.8]} 17.
O-O-O {[%clk 0:02:36.7]} 17... Be7 {[%clk 0:02:52.7]} 18. Kb1 {[%clk 0:02:26.2]}
18... a5 {[%clk 0:02:47.8]} 19. Bc6 {[%clk 0:02:20.6]} 19... Kc7 {[%clk
0:02:41.9]} 20. Rhe1 {[%clk 0:02:05.8]} 20... Bf6 {[%clk 0:02:28.5]} 21. Nd2
{[%clk 0:01:57.4]} 21... Bxc6 {[%clk 0:02:20.1]} 22. dxc6 {[%clk 0:01:53]} 22...
Qxc6 {[%clk 0:02:18.3]} 23. Ne4 {[%clk 0:01:50.5]} 23... Rhd8 {[%clk 0:01:44.1]}
24. c4 {[%clk 0:01:49.9]} 24... Kb7 {[%clk 0:01:29.5]} 25. Rd5 {[%clk
0:01:48.8]} 25... Be7 {[%clk 0:01:24.7]} 26. Rb5+ {[%clk 0:01:44.6]} 26... Ka6
{[%clk 0:01:23.6]} 27. Rd1 {[%clk 0:01:38.2]} 27... Rab8 {[%clk 0:01:17.8]} 28.
Rdd5 {[%clk 0:01:37.5]} 28... Rb6 {[%clk 0:01:13.4]} 29. Rxa5+ {[%clk
0:01:29.7]} 29... Kb7 {[%clk 0:01:13.8]} 30. Qd3 {[%clk 0:01:22.7]} 30... g6
{[%clk 0:01:05.1]} 31. f6 {[%clk 0:01:21.5]} 31... Bf8 {[%clk 0:01:04.9]} 32. c5
{[%clk 0:01:22.2]} 32... Ra6 {[%clk 0:00:57.9]} 33. Rxa6 {[%clk 0:00:57.5]}
33... Qxa6 {[%clk 0:00:55.2]} 34. Qxa6+ {[%clk 0:00:50.6]} 34... Kxa6 {[%clk
0:00:56.1]} 35. cxd6 {[%clk 0:00:51.3]} 35... Kb6 {[%clk 0:00:54.2]} 36. Rd1
{[%clk 0:00:32.2]} 36... Kc6 {[%clk 0:00:53.7]} 37. Kc2 {[%clk 0:00:25.3]} 37...
Bxd6 {[%clk 0:00:52.5]} 38. Kb3 {[%clk 0:00:24.1]} 38... Bc7 {[%clk 0:00:47.7]}
39. Rxd8 {[%clk 0:00:23.7]} 39... Bxd8 {[%clk 0:00:48.6]} 40. Kxb4 {[%clk
0:00:24]} 40... Kd5 {[%clk 0:00:49.2]} 41. Nc3+ {[%clk 0:00:24.1]} 41... Kd4
{[%clk 0:00:49.4]} 42. Nb5+ {[%clk 0:00:24.7]} 42... Kd3 {[%clk 0:00:48.9]} 43.
Nd6 {[%clk 0:00:25.3]} 43... Bxf6 {[%clk 0:00:46]} 44. Nxf7 {[%clk 0:00:20.5]}
44... e4 {[%clk 0:00:46.2]} 45. Nd6 {[%clk 0:00:08.7]} 45... e3 {[%clk 0:00:46]}
46. Nb7 {[%clk 0:00:04.9]} 46... Be7+ {[%clk 0:00:46]} 47. Kb3 {[%clk
0:00:04.5]} 47... e2 {[%clk 0:00:46.9]} 0-1

[Event "Early-Titled-Tuesday-Blitz-January-30-2024"]
[Site "Chess.com"]
[Date "2024.01.30"]
[Round "11"]
[White "elchacal664"]
[Black "aksuliini1"]
[Result "1-0"]
[WhiteElo "2397"]
[BlackElo "2505"]
[TimeControl "180+1"]
[EndTime "10:12:16 PST"]
[Termination "elchacal664 won by resignation"]

1. e4 {[%clk 0:03:00.9]} 1... c5 {[%clk 0:02:59.8]} 2. Nf3 {[%clk 0:02:58.3]}
2... d6 {[%clk 0:02:59.8]} 3. d4 {[%clk 0:02:57.2]} 3... cxd4 {[%clk 0:03:00.7]}
4. Qxd4 {[%clk 0:02:56.5]} 4... Nc6 {[%clk 0:02:58.9]} 5. Bb5 {[%clk 0:02:56.6]}
5... Bd7 {[%clk 0:02:58.5]} 6. Bxc6 {[%clk 0:02:56.3]} 6... Bxc6 {[%clk
0:02:59.4]} 7. Nc3 {[%clk 0:02:56.5]} 7... e5 {[%clk 0:02:45.9]} 8. Qd3 {[%clk
0:02:54.4]} 8... h6 {[%clk 0:02:46]} 9. Nd2 {[%clk 0:02:50]} 9... Nf6 {[%clk
0:02:40.5]} 10. Nc4 {[%clk 0:02:46.8]} 10... b5 {[%clk 0:02:26.7]} 11. Ne3
{[%clk 0:02:43.7]} 11... a6 {[%clk 0:02:21.8]} 12. Ncd5 {[%clk 0:02:29.2]} 12...
Bxd5 {[%clk 0:02:09.1]} 13. Nxd5 {[%clk 0:02:27.9]} 13... Rc8 {[%clk 0:02:02.1]}
14. a4 {[%clk 0:02:25]} 14... Nxd5 {[%clk 0:01:58.9]} 15. exd5 {[%clk
0:02:18.6]} 15... Qb6 {[%clk 0:01:48]} 16. Be3 {[%clk 0:02:15.6]} 16... Qb7
{[%clk 0:01:47.8]} 17. axb5 {[%clk 0:02:14.7]} 17... axb5 {[%clk 0:01:47.1]} 18.
Ra7 {[%clk 0:02:11.2]} 18... Qb8 {[%clk 0:01:37.8]} 19. Qf5 {[%clk 0:02:10.7]}
19... Rc7 {[%clk 0:01:34.5]} 20. Ra6 {[%clk 0:01:38.3]} 20... Qc8 {[%clk
0:01:15.8]} 21. Qxc8+ {[%clk 0:01:32.2]} 21... Rxc8 {[%clk 0:01:16.7]} 22. Kd2
{[%clk 0:01:32.3]} 22... Be7 {[%clk 0:01:04.5]} 23. Rb6 {[%clk 0:01:30.4]} 23...
f5 {[%clk 0:00:44.1]} 24. f3 {[%clk 0:01:25.6]} 24... g5 {[%clk 0:00:35.9]} 25.
Rxb5 {[%clk 0:01:24.5]} 25... Kd7 {[%clk 0:00:35.7]} 26. Ra1 {[%clk 0:01:23.4]}
26... Rc7 {[%clk 0:00:32.4]} 27. Ra7 {[%clk 0:01:17.5]} 27... Rxa7 {[%clk
0:00:29.3]} 28. Bxa7 {[%clk 0:01:16.8]} 28... Rc8 {[%clk 0:00:30]} 29. Rb7+
{[%clk 0:01:15]} 29... Ke8 {[%clk 0:00:30.1]} 30. Be3 {[%clk 0:01:13]} 30... Ra8
{[%clk 0:00:26.7]} 31. Ra7 {[%clk 0:01:09.4]} 31... Rb8 {[%clk 0:00:25.5]} 32.
b3 {[%clk 0:01:09.1]} 32... Rb5 {[%clk 0:00:25.4]} 33. Ke2 {[%clk 0:00:58.1]}
33... f4 {[%clk 0:00:22.6]} 34. Bf2 {[%clk 0:00:54]} 34... h5 {[%clk 0:00:20.1]}
35. h3 {[%clk 0:00:53.2]} 35... Bf6 {[%clk 0:00:13.3]} 36. Rh7 {[%clk
0:00:51.2]} 36... h4 {[%clk 0:00:10.7]} 37. Ra7 {[%clk 0:00:48.9]} 37... Kf8
{[%clk 0:00:09.9]} 38. Ra3 {[%clk 0:00:46.8]} 38... Kf7 {[%clk 0:00:08.6]} 39.
c4 {[%clk 0:00:46.6]} 39... Rb7 {[%clk 0:00:08.8]} 40. Kd3 {[%clk 0:00:46.9]}
40... Kg6 {[%clk 0:00:09.4]} 41. Ke4 {[%clk 0:00:46.9]} 41... Rb8 {[%clk
0:00:08.7]} 42. Ba7 {[%clk 0:00:44.9]} 42... Ra8 {[%clk 0:00:06.6]} 43. b4
{[%clk 0:00:42.9]} 43... Be7 {[%clk 0:00:06.4]} 44. b5 {[%clk 0:00:42.4]} 44...
Bd8 {[%clk 0:00:06.1]} 45. Ra6 {[%clk 0:00:42.2]} 45... Be7 {[%clk 0:00:04.8]}
46. b6 {[%clk 0:00:41.5]} 46... Rc8 {[%clk 0:00:04]} 47. Kd3 {[%clk 0:00:40.6]}
47... Kf5 {[%clk 0:00:01.6]} 48. b7 {[%clk 0:00:40]} 1-0

[Event "Early-Titled-Tuesday-Blitz-January-30-2024"]
[Site "Chess.com"]
[Date "2024.01.30"]
[Round "11"]
[White "Orujov2008"]
[Black "rasmussvane"]
[Result "1/2-1/2"]
[WhiteElo "2724"]
[BlackElo "2956"]
[TimeControl "180+1"]
[EndTime "10:12:19 PST"]
[Termination "Game drawn - insufficient material"]

1. e4 {[%clk 0:03:00.9]} 1... c6 {[%clk 0:02:52.3]} 2. d4 {[%clk 0:03:00.6]}
2... d5 {[%clk 0:02:53.2]} 3. Nc3 {[%clk 0:03:01.4]} 3... dxe4 {[%clk
0:02:51.4]} 4. Nxe4 {[%clk 0:03:02.3]} 4... Nd7 {[%clk 0:02:51.9]} 5. Ng5 {[%clk
0:03:00.7]} 5... h6 {[%clk 0:02:50]} 6. Ne6 {[%clk 0:02:54.3]} 6... Qb6 {[%clk
0:02:50]} 7. Nxf8 {[%clk 0:02:54.8]} 7... Nxf8 {[%clk 0:02:50.3]} 8. Nf3 {[%clk
0:02:50.5]} 8... Nf6 {[%clk 0:02:49.8]} 9. Bd3 {[%clk 0:02:50.2]} 9... Bf5
{[%clk 0:02:48]} 10. Bxf5 {[%clk 0:02:47.7]} 10... Qa5+ {[%clk 0:02:47.8]} 11.
Bd2 {[%clk 0:02:44.5]} 11... Qxf5 {[%clk 0:02:48.7]} 12. O-O {[%clk 0:02:45.1]}
12... Ng6 {[%clk 0:02:46.6]} 13. c4 {[%clk 0:02:39.8]} 13... O-O {[%clk
0:02:46.1]} 14. Qb3 {[%clk 0:02:36.4]} 14... b5 {[%clk 0:02:32.5]} 15. Rac1
{[%clk 0:02:35.3]} 15... Rfc8 {[%clk 0:02:30.8]} 16. cxb5 {[%clk 0:02:25.6]}
16... cxb5 {[%clk 0:02:21]} 17. Rfe1 {[%clk 0:02:25.3]} 17... e6 {[%clk
0:02:02.6]} 18. Ne5 {[%clk 0:02:19.5]} 18... Rxc1 {[%clk 0:01:57.1]} 19. Bxc1
{[%clk 0:02:16]} 19... a6 {[%clk 0:01:51.2]} 20. a4 {[%clk 0:02:11.1]} 20...
Nxe5 {[%clk 0:01:06.9]} 21. dxe5 {[%clk 0:02:10]} 21... Nd5 {[%clk 0:01:04.3]}
22. axb5 {[%clk 0:02:04.5]} 22... Rb8 {[%clk 0:01:04.1]} 23. Qg3 {[%clk
0:01:55.2]} 23... Rxb5 {[%clk 0:00:53.1]} 24. Bxh6 {[%clk 0:01:48.8]} 24... Qh7
{[%clk 0:00:51.8]} 25. Bg5 {[%clk 0:01:41.2]} 25... Rxb2 {[%clk 0:00:44.3]} 26.
Rc1 {[%clk 0:01:40.7]} 26... Rb1 {[%clk 0:00:43.9]} 27. Qa3 {[%clk 0:01:33.4]}
27... Qc2 {[%clk 0:00:38]} 28. Rxb1 {[%clk 0:01:29]} 28... Qxb1+ {[%clk
0:00:37.9]} 29. Qc1 {[%clk 0:01:29.9]} 29... Qf5 {[%clk 0:00:31.2]} 30. f4
{[%clk 0:01:22]} 30... a5 {[%clk 0:00:26.9]} 31. Qa1 {[%clk 0:01:19]} 31... f6
{[%clk 0:00:13.8]} 32. exf6 {[%clk 0:01:11.2]} 32... gxf6 {[%clk 0:00:14.7]} 33.
Bh4 {[%clk 0:01:10.8]} 33... Nxf4 {[%clk 0:00:12.4]} 34. Bxf6 {[%clk 0:01:10.3]}
34... Qg6 {[%clk 0:00:04]} 35. Qb2 {[%clk 0:01:00.3]} 35... Nxg2 {[%clk
0:00:03.2]} 36. Qxg2 {[%clk 0:00:55]} 36... Kf7 {[%clk 0:00:02.9]} 37. Qxg6+
{[%clk 0:00:53.7]} 37... Kxg6 {[%clk 0:00:03.8]} 38. Ba1 {[%clk 0:00:53.4]}
38... Kf5 {[%clk 0:00:03.5]} 39. Kf2 {[%clk 0:00:54.3]} 39... Kg4 {[%clk
0:00:03.9]} 40. Be5 {[%clk 0:00:52.1]} 40... Kh3 {[%clk 0:00:04.1]} 41. Kg1
{[%clk 0:00:52.3]} 41... a4 {[%clk 0:00:04.5]} 42. Kh1 {[%clk 0:00:52.7]} 42...
a3 {[%clk 0:00:05.1]} 43. Kg1 {[%clk 0:00:52.2]} 43... a2 {[%clk 0:00:05.5]} 44.
Kh1 {[%clk 0:00:52]} 44... Kg4 {[%clk 0:00:05.6]} 45. Kg2 {[%clk 0:00:52.1]}
45... Kf5 {[%clk 0:00:06.2]} 46. Bb2 {[%clk 0:00:48.1]} 46... e5 {[%clk
0:00:06]} 47. Kg3 {[%clk 0:00:45.5]} 47... e4 {[%clk 0:00:06.3]} 48. h4 {[%clk
0:00:45.4]} 48... e3 {[%clk 0:00:05.7]} 49. Kf3 {[%clk 0:00:44.9]} 49... e2
{[%clk 0:00:06.2]} 50. Kxe2 {[%clk 0:00:39]} 50... Kg4 {[%clk 0:00:06.4]} 51.
Kd2 {[%clk 0:00:39.6]} 51... Kxh4 {[%clk 0:00:06.6]} 52. Kc2 {[%clk 0:00:40.2]}
52... a1=Q {[%clk 0:00:07.2]} 53. Bxa1 {[%clk 0:00:40.2]} 1/2-1/2

[Event "Early-Titled-Tuesday-Blitz-January-30-2024"]
[Site "Chess.com"]
[Date "2024.01.30"]
[Round "11"]
[White "frederiksvane"]
[Black "Byniolus"]
[Result "1-0"]
[WhiteElo "2931"]
[BlackElo "2846"]
[TimeControl "180+1"]
[EndTime "10:12:20 PST"]
[Termination "frederiksvane won by checkmate"]

1. e4 {[%clk 0:03:00.9]} 1... d6 {[%clk 0:02:59.7]} 2. d4 {[%clk 0:03:01]} 2...
Nf6 {[%clk 0:03:00.6]} 3. Nc3 {[%clk 0:03:01.7]} 3... c6 {[%clk 0:03:01]} 4. Nf3
{[%clk 0:02:59.6]} 4... Bg4 {[%clk 0:03:01]} 5. Be2 {[%clk 0:02:58.2]} 5... e6
{[%clk 0:03:01]} 6. O-O {[%clk 0:02:58.3]} 6... Be7 {[%clk 0:03:01]} 7. Be3
{[%clk 0:02:56.2]} 7... d5 {[%clk 0:03:01.4]} 8. e5 {[%clk 0:02:55.8]} 8... Nfd7
{[%clk 0:03:01.6]} 9. Ne1 {[%clk 0:02:46.1]} 9... Bxe2 {[%clk 0:03:02.5]} 10.
Nxe2 {[%clk 0:02:46.5]} 10... c5 {[%clk 0:03:03]} 11. c3 {[%clk 0:02:47.2]}
11... Nc6 {[%clk 0:03:03.8]} 12. Nd3 {[%clk 0:02:47.3]} 12... cxd4 {[%clk
0:03:01]} 13. cxd4 {[%clk 0:02:47.4]} 13... O-O {[%clk 0:02:59]} 14. Nef4 {[%clk
0:02:43.1]} 14... Rc8 {[%clk 0:02:52.4]} 15. Qg4 {[%clk 0:02:38.6]} 15... Kh8
{[%clk 0:02:52.6]} 16. Rad1 {[%clk 0:02:33.2]} 16... Nb6 {[%clk 0:02:43.2]} 17.
b3 {[%clk 0:02:29.9]} 17... Nb4 {[%clk 0:02:26.2]} 18. Nxb4 {[%clk 0:02:22.3]}
18... Bxb4 {[%clk 0:02:27.1]} 19. Nh5 {[%clk 0:02:22.7]} 19... Rg8 {[%clk
0:02:23.2]} 20. Bg5 {[%clk 0:02:18.6]} 20... Be7 {[%clk 0:02:06]} 21. h4 {[%clk
0:02:18.8]} 21... Nd7 {[%clk 0:02:01.7]} 22. Rc1 {[%clk 0:02:15.4]} 22... Rc6
{[%clk 0:01:42.2]} 23. Rxc6 {[%clk 0:02:13.7]} 23... bxc6 {[%clk 0:01:43.1]} 24.
Rc1 {[%clk 0:02:14.1]} 24... c5 {[%clk 0:01:35.3]} 25. Qg3 {[%clk 0:01:26.4]}
25... f6 {[%clk 0:01:18.7]} 26. Bd2 {[%clk 0:00:55]} 26... fxe5 {[%clk
0:01:07.9]} 27. dxe5 {[%clk 0:00:55.1]} 27... Bxh4 {[%clk 0:01:06.8]} 28. Qh2
{[%clk 0:00:51]} 28... Bg5 {[%clk 0:00:55.9]} 29. f4 {[%clk 0:00:44.4]} 29...
Bh6 {[%clk 0:00:56]} 30. g4 {[%clk 0:00:42.7]} 30... Nxe5 {[%clk 0:00:54.6]} 31.
fxe5 {[%clk 0:00:42.1]} 31... Bxd2 {[%clk 0:00:51.8]} 32. Qxd2 {[%clk 0:00:43]}
32... Qh4 {[%clk 0:00:47]} 33. Qf4 {[%clk 0:00:40.3]} 33... c4 {[%clk
0:00:38.7]} 34. bxc4 {[%clk 0:00:39.8]} 34... dxc4 {[%clk 0:00:39.6]} 35. Kg2
{[%clk 0:00:26]} 35... Rb8 {[%clk 0:00:33.3]} 36. Rc2 {[%clk 0:00:22.9]} 36...
Qd8 {[%clk 0:00:28.1]} 37. Qxc4 {[%clk 0:00:20.5]} 37... h6 {[%clk 0:00:19]} 38.
Qxe6 {[%clk 0:00:18.2]} 38... Qd3 {[%clk 0:00:10.8]} 39. Rc8+ {[%clk 0:00:18.2]}
39... Kh7 {[%clk 0:00:11.5]} 40. Nf6+ {[%clk 0:00:11.7]} 40... Kg6 {[%clk
0:00:10.4]} 41. Ne4+ {[%clk 0:00:11.6]} 41... Kh7 {[%clk 0:00:09.4]} 42. Qf5+
{[%clk 0:00:11.6]} 42... g6 {[%clk 0:00:09.2]} 43. Qf7# {[%clk 0:00:11.9]} 1-0

[Event "Early-Titled-Tuesday-Blitz-January-30-2024"]
[Site "Chess.com"]
[Date "2024.01.30"]
[Round "11"]
[White "ValentunHulka"]
[Black "maximnovik"]
[Result "1-0"]
[WhiteElo "2788"]
[BlackElo "2616"]
[TimeControl "180+1"]
[EndTime "10:12:28 PST"]
[Termination "ValentunHulka won on time"]

1. Nc3 {[%clk 0:03:00.9]} 1... c6 {[%clk 0:02:59.2]} 2. e4 {[%clk 0:03:01.2]}
2... d5 {[%clk 0:02:59.7]} 3. Nf3 {[%clk 0:03:02.1]} 3... dxe4 {[%clk
0:02:59.6]} 4. Nxe4 {[%clk 0:03:03]} 4... Nf6 {[%clk 0:02:59.3]} 5. Qe2 {[%clk
0:03:03.6]} 5... Nxe4 {[%clk 0:02:59.5]} 6. Qxe4 {[%clk 0:03:04.5]} 6... Nd7
{[%clk 0:02:59.4]} 7. Bc4 {[%clk 0:03:04]} 7... Nf6 {[%clk 0:02:59.2]} 8. Qe2
{[%clk 0:03:04.6]} 8... e6 {[%clk 0:02:59.3]} 9. O-O {[%clk 0:03:04.9]} 9... b5
{[%clk 0:02:53.3]} 10. Bb3 {[%clk 0:03:01.5]} 10... Be7 {[%clk 0:02:48.1]} 11.
d4 {[%clk 0:03:01.7]} 11... O-O {[%clk 0:02:47.2]} 12. Rd1 {[%clk 0:03:02.4]}
12... Qc7 {[%clk 0:02:45.8]} 13. Ne5 {[%clk 0:03:01.7]} 13... Bb7 {[%clk
0:02:44.7]} 14. a4 {[%clk 0:02:55.8]} 14... a6 {[%clk 0:02:36.9]} 15. Bf4 {[%clk
0:02:47.6]} 15... Bd6 {[%clk 0:02:36.2]} 16. Bg3 {[%clk 0:02:48.2]} 16... Rad8
{[%clk 0:02:22.3]} 17. Rd2 {[%clk 0:02:27.1]} 17... Rfe8 {[%clk 0:02:10]} 18.
Rad1 {[%clk 0:02:22.4]} 18... b4 {[%clk 0:02:07.2]} 19. Bh4 {[%clk 0:01:42.8]}
19... c5 {[%clk 0:02:03.6]} 20. Nxf7 {[%clk 0:01:23.1]} 20... Kxf7 {[%clk
0:01:31.8]} 21. dxc5 {[%clk 0:01:22]} 21... Bxh2+ {[%clk 0:01:22.5]} 22. Kh1
{[%clk 0:01:22.5]} 22... Nd5 {[%clk 0:01:11.9]} 23. Qh5+ {[%clk 0:01:10.2]}
23... Kg8 {[%clk 0:00:57.1]} 24. Bxd8 {[%clk 0:01:09.9]} 24... Rxd8 {[%clk
0:00:53.7]} 25. Qxh2 {[%clk 0:01:09.7]} 25... Qxc5 {[%clk 0:00:54]} 26. Qe5
{[%clk 0:01:06.3]} 26... Qe7 {[%clk 0:00:49]} 27. Kg1 {[%clk 0:01:02.3]} 27...
Qf7 {[%clk 0:00:47.4]} 28. Re1 {[%clk 0:00:54]} 28... Bc8 {[%clk 0:00:32]} 29.
Rd4 {[%clk 0:00:53.7]} 29... Rf8 {[%clk 0:00:28.7]} 30. Rd2 {[%clk 0:00:53.1]}
30... Nf4 {[%clk 0:00:23.5]} 31. g3 {[%clk 0:00:37.7]} 31... Ng6 {[%clk
0:00:22]} 32. Qxe6 {[%clk 0:00:32.5]} 32... Bxe6 {[%clk 0:00:20.8]} 33. Bxe6
{[%clk 0:00:33.4]} 33... Qxe6 {[%clk 0:00:15.6]} 34. Rxe6 {[%clk 0:00:34.3]}
34... a5 {[%clk 0:00:10.7]} 35. Rd5 {[%clk 0:00:34.4]} 35... Rc8 {[%clk
0:00:07.9]} 36. Re2 {[%clk 0:00:34.5]} 36... Ra8 {[%clk 0:00:07.2]} 37. Rb5
{[%clk 0:00:31.7]} 37... h6 {[%clk 0:00:06.4]} 38. Rd2 {[%clk 0:00:31.9]} 38...
Nf8 {[%clk 0:00:06.3]} 39. Rdd5 {[%clk 0:00:31.9]} 39... Rc8 {[%clk 0:00:05.8]}
40. Rdc5 {[%clk 0:00:32.5]} 40... Rd8 {[%clk 0:00:05.4]} 41. Rxa5 {[%clk
0:00:33.2]} 41... Rd2 {[%clk 0:00:05.2]} 42. Rab5 {[%clk 0:00:32.8]} 42... Ne6
{[%clk 0:00:04.9]} 43. Rc4 {[%clk 0:00:33.4]} 43... Nd4 {[%clk 0:00:04.8]} 44.
Rbxb4 {[%clk 0:00:32.2]} 44... Nxc2 {[%clk 0:00:03.2]} 45. Rxc2 {[%clk
0:00:32.6]} 45... Rxc2 {[%clk 0:00:02.8]} 46. a5 {[%clk 0:00:33.5]} 46... Rc1+
{[%clk 0:00:02.9]} 47. Kg2 {[%clk 0:00:33.6]} 47... Ra1 {[%clk 0:00:03.4]} 48.
Rb8+ {[%clk 0:00:33.3]} 48... Kf7 {[%clk 0:00:03.6]} 49. Ra8 {[%clk 0:00:34.2]}
49... Ra4 {[%clk 0:00:01.7]} 50. a6 {[%clk 0:00:30.9]} 1-0